Cogmind - Beta 14 @@@ ROGUE MODE // 2024.08.24 @ 01:29:28 Player: T1-M4T Result: Destroyed by S-43 Plague with Heavy Machine Gun Performance ------------- Evolutions (9) 4500 Regions Visited (19) 3800 Robots Destroyed (182) 910 Value Destroyed (8532) 8532 Prototype IDs (23) 460 Alien Tech Used (1) 200 Bonus (4341) 4341 TOTAL SCORE: 22743 Bonus ------- High Alert Combat Kills 2244 Follower Combat Kills 1873 Registered with UFD 300 Friendly Fire -76 Cogmind --------- Core Integrity 0/1600 Matter 155/300 Energy 99/100 System Corruption 17% Temperature Cool (0) Movement Core (50) Location -1/Access Parts ------- > --- POWER (2) -------- (None) > --- PROPULSION (6) --- Antigrav Array > --- UTILITY (14) ----- (None) > --- WEAPON (3) ------- (None) > --- INVENTORY (5) ---- Huge Storage Unit Experimental Matter Compressor (500) Improved Transmission Jammer Subatomic Replicator Enhanced Nova Cannon Peak State ------------ > --- POWER ------------ Particle Reactor Light Quantum Reactor > --- PROPULSION ------- Armored Medium Treads Improved Heavy Treads Biometal Medium Treads Overtuned Huge Scrapsphere > --- UTILITY ---------- Scrap Suit Advanced Heat Sink Advanced Heat Sink High-capacity Storage Unit Long-range Sensor Array Long-range Terrain Scanner Improved Armor Integrity Analyzer Improved Transmission Jammer Improved Medium Armor Plating Centrium Medium Armor Plating Experimental Thermal Defense Suite > --- WEAPON ----------- Enhanced Quantum Rifle Railgun Gamma Bomb Array > --- INVENTORY -------- Antimatter Reactor Light Quantum Reactor Medium Treads Improved Heavy Treads Biometal Medium Treads Experimental Energy Well Experimental Matter Compressor Improved Transmission Jammer Heavy Armor Plating Improved Force Field Dynamic Insulation System Subatomic Replicator Terrabomb Cooled Plasma Rifle Overtuned Quantum Rifle Compact HERF Cannon Railgun Hypervelocity Railgun [Rating: 163] Favorites ----------- Power Light Nuclear Core Engine Reinforced Ion Engine Power Core Light Nuclear Core Reactor Light Antimatter Reactor Propulsion Light Treads Treads Light Treads Leg Flexi-carbon Leg Wheel Overtuned Huge Scrapsphere Hover Unit Antigrav Array Flight Unit Cesium-ion Thruster Utility High-capacity Storage Unit Device Scrap Suit Storage High-capacity Storage Unit Processor Improved Targeting Computer Hackware Advanced Hacking Suite Protection Light Armor Plating Weapon Improved Heavy Machine Gun Energy Gun Cooled Plasma Rifle Energy Cannon Compact Ion Cannon Ballistic Gun Improved Heavy Machine Gun Ballistic Cannon Mass Driver Launcher Gamma Bomb Array Special Weapon CPS Tube Impact Weapon Power Maul Slashing Weapon Chainsword Build | -11 -10 -10 -9 -9 -9 -8 -8 -8 -8 -8 -6 -5 -5 -5 -4 -3 -3 -2 -1 ------- Run | Yrd Mat Min Mat Min Exi Min Mat Sto Rec Scr Fac Fac Upp Upp Fac Res Qua Res Acc Slots Evolved 18 | . . . 2 . . . 2 . . . 4 2 . . 2 2 . 2 2 Power 1 | . . . . . . . . . . . 1 . . . . . . . . Propulsion 4 | . . . 1 . . . 1 . . . . 1 . . 1 . . . . Utility 12 | . . . 1 . . . 1 . . . 3 . . . 1 2 . 2 2 Weapon 1 | . . . . . . . . . . . . 1 . . . . . . . Parts Attached 270 | 6 5 5 10 2 . 5 9 14 . 12 47 23 5 . 20 31 22 49 5 Power 32 | 1 1 1 1 . . . . 3 . 1 10 3 2 . 2 2 1 4 . Engine 12 | 1 1 1 1 . . . . . . 1 3 2 2 . . . . . . Core 8 | . . . . . . . . 3 . . 4 1 . . . . . . . Reactor 12 | . . . . . . . . . . . 3 . . . 2 2 1 4 . Propulsion 55 | 2 . 1 3 1 . 1 4 5 . 4 6 4 1 . 6 6 1 7 3 Treads 41 | 2 . 1 3 1 . 1 4 5 . 3 3 3 . . 3 5 1 4 2 Leg 6 | . . . . . . . . . . . . . . . 2 1 . 3 . Wheel 6 | . . . . . . . . . . 1 3 1 . . 1 . . . . Hover 1 | . . . . . . . . . . . . . . . . . . . 1 Flight 1 | . . . . . . . . . . . . . 1 . . . . . . Utility 111 | 1 2 3 3 . . 2 3 4 . 4 20 7 2 . 6 19 16 19 . Device 60 | . . . 2 . . . . 1 . 1 12 5 . . 4 13 10 12 . Storage 7 | 1 1 . 1 . . . . . . . . . . . 1 2 . 1 . Processor 12 | . . . . . . 1 2 1 . . 4 . 2 . . . 1 1 . Hackware 1 | . . . . . . . . . . . . . . . . 1 . . . Protection 31 | . 1 3 . . . 1 1 2 . 3 4 2 . . 1 3 5 5 . Artifact . | . . . . . . . . . . . . . . . . . . . . Weapon 72 | 2 2 . 3 1 . 2 2 2 . 3 11 9 . . 6 4 4 19 2 Energy Gun 22 | 1 . . 1 . . . 1 . . . . . . . 5 4 2 8 . Energy Cannon 4 | . . . . . . . . . . . 2 1 . . . . . . 1 Ballistic Gun 28 | 1 2 . 2 1 . 2 1 2 . 2 7 3 . . . . 2 3 . Ballistic Cannon 1 | . . . . . . . . . . . . 1 . . . . . . . Launcher 12 | . . . . . . . . . . . 1 3 . . . . . 8 . Special Weapon 2 | . . . . . . . . . . 1 . 1 . . . . . . . Impact Weapon 2 | . . . . . . . . . . . 1 . . . 1 . . . . Slashing Weapon 1 | . . . . . . . . . . . . . . . . . . . 1 Piercing Weapon . | . . . . . . . . . . . . . . . . . . . . Special Melee Weapon . | . . . . . . . . . . . . . . . . . . . . Unidentified Prototypes 16 | . . . 2 . . . 1 1 . . 2 . . . 1 6 1 2 . Corrupted Parts 1 | . . . . . . . . . . . . 1 . . . . . . . System Corruption 2 | . . . . . . . . . . . . 2 . . . . . . . Parts Lost 81 | . . 3 . . . 5 3 7 . . 13 16 . . 3 1 . 27 3 Power 14 | . . 1 . . . . 1 1 . . 4 3 . . . . . 4 . Propulsion 23 | . . 1 . . . 1 1 3 . . 2 3 . . 2 . . 8 2 Utility 27 | . . 1 . . . 2 1 2 . . 5 6 . . . . . 10 . Weapon 17 | . . . . . . 2 . 1 . . 2 4 . . 1 1 . 5 1 Highest Loss Streak 23 | . . 2 . . . 2 2 3 . . 4 12 . . 2 1 . 23 2 To Critical Strikes 2 | . . . . . . . . 1 . . . 1 . . . . . . . Average Slot Usage (%) 88 | . 96 100 96 99 100 99 92 93 100 95 84 71 3 17 62 87 80 74 3 Engine 4 | . 14 14 11 11 11 11 9 . . 2 5 2 . . . . . . . Core 2 | . . . . . . . . 7 9 6 2 1 . . . . . . . Reactor 2 | . . . . . . . . . . . 2 3 . . 6 9 9 7 . Treads 26 | . 28 28 32 32 33 33 36 36 36 35 17 8 . . 11 12 14 11 1 Wheel 1 | . . . . . . . . . . . 4 8 . . 1 4 4 3 . Device 10 | . . . 8 11 11 4 . 4 9 9 14 7 . . 13 22 22 23 . Storage 8 | . 14 14 11 11 11 11 9 9 9 9 6 4 . . 4 4 4 3 . Processor 6 | . . . . . . 6 11 9 9 9 14 4 . 11 8 4 4 5 . Protection 6 | . 11 14 11 11 11 10 8 9 9 4 1 10 . . 3 3 3 4 . Energy Gun 2 | . 12 . . . . . . . . . . . . . 7 13 12 9 . Ballistic Gun 14 | . 15 28 21 21 22 22 17 18 18 17 12 8 . . . . 1 1 . Peak Build Rating 163 | 6 10 10 16 17 17 20 27 30 30 37 84 92 18 18 103 141 144 163 37 Average Rating 49 | 4 7 9 13 16 17 18 25 26 30 33 57 73 3 18 68 125 140 140 10 On Entrance 35 | . 6 10 10 16 17 17 19 24 30 30 36 82 1 18 18 99 141 142 3 Naked Turns 178 | . . . . . . . . . . . . 19 62 . . . . 1 96 Heaviest Build 139 | 14 24 24 60 60 60 60 71 66 57 61 83 89 . . 90 102 111 139 3 Greatest Support 137 | 40 40 40 60 60 60 60 86 86 86 88 88 40 5 5 106 20 20 137 3 Greatest Overweight (x) 8 | . . 1 . . . . . . . . 7 8 . . 4 5 5 6 . Average Overweight (x) 1 | . . . . . . . . . . . 1 2 . . 1 4 4 3 . Largest Inventory Capacity 20 | 8 10 10 20 20 20 20 20 20 20 20 20 20 5 5 20 20 20 20 5 Average Capacity 18 | 6 8 10 14 20 20 20 20 20 20 20 20 19 5 5 17 20 20 18 5 Most Carried 20 | 4 10 10 17 20 20 20 20 20 20 20 20 20 5 5 19 20 20 20 5 Average Carried 17 | 2 6 9 11 18 19 18 18 18 19 19 18 17 4 5 12 19 19 17 4 Final Capacity 20 | 8 10 10 20 20 20 20 20 20 20 20 20 5 5 5 20 20 20 5 5 Final Carried 20 | 4 10 10 17 20 20 16 19 19 20 20 20 4 5 5 14 20 20 5 5 Class Distribution -------------------- 32% | Mutant 26% | Scavenger-Mutant 12% | Scrapper 11% | Scavenger-Skirmisher 5% | Scavenger-Gunner 4% | Commander-Mutant 4% | Scavenger-Tank Dominant Class ---------------- Mutant | -10/Materials Mutant | -10/Mines Scavenger-Mutant | -9/Materials Scavenger-Mutant | -9/Mines Scavenger-Mutant | -9/Exiles Scavenger-Mutant | -8/Mines Scavenger-Mutant | -8/Materials Scavenger-Mutant | -8/Storage Mutant | -8/Recycling Mutant | -8/Scraptown Commander-Mutant | -6/Factory Scavenger-Skirmisher | -5/Factory Mutant | -5/Upper Caves Mutant | -5/Upper Caves Scavenger-Gunner | -4/Factory Scavenger-Skirmisher | -3/Research Scavenger-Skirmisher | -3/Quarantine Scavenger-Tank | -2/Research Mutant | -1/Access Resources | -11 -10 -10 -9 -9 -9 -8 -8 -8 -8 -8 -6 -5 -5 -5 -4 -3 -3 -2 -1 ----------- Run | Yrd Mat Min Mat Min Exi Min Mat Sto Rec Scr Fac Fac Upp Upp Fac Res Qua Res Acc Matter Collected 7280 | 200 309 294 212 35 40 299 209 625 47 136 2021 598 63 . 412 234 243 1300 3 Remotely . | . . . . . . . . . . . . . . . . . . . . Salvage Created 9144 | . 452 170 345 30 . 529 305 970 . . 1533 672 . . 329 350 289 3170 . Parts 448 | . 25 5 22 3 . 31 16 55 . . 74 28 . . 13 11 14 151 . Haulers Intercepted 2 | . 1 . 1 . . . . . . . . . . . . . . . . Recyclers Shooed 2 | . . . . 1 . . . . . . . 1 . . . . . . . Parts Field Recycled . | . . . . . . . . . . . . . . . . . . . . Retrieved Matter . | . . . . . . . . . . . . . . . . . . . . Parts Self-Destructed . | . . . . . . . . . . . . . . . . . . . . Prevented 1 | . . . . . . . . . . . . . 1 . . . . . . Kills | -11 -10 -10 -9 -9 -9 -8 -8 -8 -8 -8 -6 -5 -5 -5 -4 -3 -3 -2 -1 ------- Run | Yrd Mat Min Mat Min Exi Min Mat Sto Rec Scr Fac Fac Upp Upp Fac Res Qua Res Acc Combat Hostiles Destroyed 157 | . 9 10 6 2 . 15 5 21 . . 25 15 . . 5 4 4 36 . Guns 119 | . 9 10 6 2 . 15 5 21 . . 20 4 . . 3 3 4 17 . Cannons 6 | . . . . . . . . . . . . 6 . . . . . . . AOE 11 | . . . . . . . . . . . 3 4 . . . . . 4 . Classes Destroyed 20 | . 5 1 3 . . . . 1 . . 4 3 . . . . . 3 . Worker 4 | . . . 1 . . . . . . . 1 1 . . . . . 1 . Builder 10 | . . . . . . . . . . . . 3 . . . . . 7 . Tunneler 2 | . . . 1 . . . . . . . 1 . . . . . . . . Hauler 2 | . 1 . 1 . . . . . . . . . . . . . . . . Recycler 3 | . 1 . . . . . 1 1 . . . . . . . . . . . Mechanic 3 | . . . . . . . . 1 . . . 1 . . . . . 1 . Watcher 7 | . 1 . 1 . . . . 2 . . . . . . . . 1 2 . Swarmer 29 | . 3 3 1 2 . 7 . 6 . . . 2 . . . . . 5 . Grunt 57 | . 6 1 4 . . 8 4 9 . . 8 6 . . . . . 11 . Brawler 3 | . . . . . . . . . . . . 1 . . . . . 2 . Duelist 3 | . . . . . . . . . . . . 1 . . . . . 2 . Protector 1 | . . . . . . . . . . . . . . . . . . 1 . Sentry 15 | . . . 1 . . . 1 6 . . 2 1 . . 1 3 . . . Specialist 1 | . . . . . . . . . . . . . . . . . . 1 . Hunter 12 | . . . . . . . . . . . 7 1 . . 1 . . 3 . Programmer 26 | . . . . . . . . . . . 5 3 . . 3 1 4 10 . Heavy 2 | . . . . . . . . . . . 2 . . . . . . . . Striker 1 | . . . . . . . . . . . . . . . . . . 1 . Scrapoid 1 | . . . . . . . . . . . 1 . . . . . . . . Assembled 6 | . . 6 . . . . . . . . . . . . . . . . . Best Kill Streak 9 | . 3 6 7 2 . 4 4 5 . . 7 8 . . 4 1 2 9 . Combat Bots Only 8 | . 3 6 2 2 . 4 3 3 . . 6 6 . . 4 1 2 8 . Max Kills in Single Turn 3 | . 2 1 2 1 . 1 1 2 . . 2 2 . . 1 1 1 3 . Gunslinging 1 | . 1 . . . . . . 1 . . 1 . . . . . . . . Exploded 2 | . . . . . . . . . . . 2 1 . . . . . 2 . Melee . | . . . . . . . . . . . . . . . . . . . . Uniques/NPCs Destroyed . | . . . . . . . . . . . . . . . . . . . . Combat | -11 -10 -10 -9 -9 -9 -8 -8 -8 -8 -8 -6 -5 -5 -5 -4 -3 -3 -2 -1 -------- Run | Yrd Mat Min Mat Min Exi Min Mat Sto Rec Scr Fac Fac Upp Upp Fac Res Qua Res Acc Hostile Shots Fired 1653 | . 44 54 12 11 . 74 27 146 . . 263 197 12 . 84 25 49 448 207 Missed 492 | . 11 14 3 4 . 16 8 31 . . 64 61 2 . 27 11 9 140 91 Damage Taken 22330 | . 384 555 113 60 . 785 336 1533 . . 3528 2924 220 . 1056 358 670 7168 2640 Core 4144 | . 57 133 8 8 . 106 . 114 . . 275 717 220 . 132 . 56 715 1603 Absorbed by Shields 302 | . . . . . . . . . . . . . . . . . 59 243 . Reduced by Siege Mode 163 | . . . . . . . . . . . . . . . . . 8 155 . Ignored by Resistances 595 | . . . . . . . . . . . . . . . . . 202 393 . Regen/Repaired (Parts) 88 | . . . . . . . . . . 19 26 . . . 20 . . 23 . Core Remaining (%) 64 | 100 . 24 . . . 69 . . . 79 67 . . 6 88 . 95 50 . Volleys Fired 523 | . 43 27 15 5 . 46 21 79 . 1 91 62 . . 13 17 28 74 1 Largest 3 | . 2 2 2 2 . 2 2 2 . 2 2 3 . . 3 3 3 3 1 Hottest 249 | . 70 46 46 46 . 46 46 46 . 15 90 118 . . 238 238 199 249 120 Shots Fired 1073 | . 83 54 30 10 . 92 42 159 . 2 174 111 . . 39 51 65 160 1 Gun 986 | . 83 54 30 10 . 92 42 159 . 1 163 54 . . 39 51 65 143 . Cannon 57 | . . . . . . . . . . . 9 47 . . . . . . 1 Launcher 29 | . . . . . . . . . . . 2 10 . . . . . 17 . Special 1 | . . . . . . . . . . 1 . . . . . . . . . Kinetic 720 | . 46 54 30 10 . 92 42 159 . 1 163 76 . . . . 8 39 . Thermal 323 | . 37 . . . . . . . . . 9 25 . . 39 51 57 104 1 Explosive 12 | . . . . . . . . . . . 2 10 . . . . . . . Electromagnetic 17 | . . . . . . . . . . . . . . . . . . 17 . Robot Hit Streak 30 | . 14 7 8 9 . 15 18 30 . 5 14 19 . . 7 14 8 17 . Robot Miss Streak 5 | . 3 4 5 4 . 3 2 4 . . 3 3 . . 2 2 4 3 . Penetration Max 1 | . . . . . . . . . . . 1 1 . . . . . 1 . Secondary Targets 21 | . 1 . . . . 2 1 7 . . 4 . . . 1 . 1 4 . Max Gunslinging Chain 1 | . 1 . . . . 1 1 1 . . 1 . . . 1 . 1 1 . Shots Hit Robots 744 | . 51 34 16 3 . 63 33 125 . 2 123 81 . . 24 40 37 112 . Core Hits 427 | . 19 17 12 2 . 30 13 47 . . 52 56 . . 8 13 10 148 . Critical Kills 4 | . . . . . . . . . . . 2 1 . . . . . 1 . Critical Parts Destroyed 10 | . . . . . . 1 . 1 . . 4 1 . . . . . 3 . Critical Strikes 26 | . 3 . . . . 1 . 1 . . 6 2 . . . 2 3 8 . Burn 12 | . 3 . . . . . . . . . . . . . . 2 3 4 . Meltdown 1 | . . . . . . . . . . . . 1 . . . . . . . Destroy 11 | . . . . . . 1 . 1 . . 4 1 . . . . . 4 . Smash 2 | . . . . . . . . . . . 2 . . . . . . . . Melee Attacks 10 | . . . . . . . . . . . 8 . . . 1 . . . 1 Impact 9 | . . . . . . . . . . . 8 . . . 1 . . . . Slashing 1 | . . . . . . . . . . . . . . . . . . . 1 Piercing . | . . . . . . . . . . . . . . . . . . . . Sneak Attacks . | . . . . . . . . . . . . . . . . . . . . Combat Hostiles . | . . . . . . . . . . . . . . . . . . . . Follow-up Attacks . | . . . . . . . . . . . . . . . . . . . . Damage Inflicted 21530 | . 674 516 331 61 . 973 521 2047 . 21 3269 3593 . . 501 1139 1106 6749 29 Guns 14388 | . 673 516 312 61 . 973 500 2024 . 21 2646 955 . . 501 1135 1106 2965 . Cannons 1207 | . . . . . . . . . . . . 1207 . . . . . . . Explosions 5440 | . . . . . . . . . . . 320 1353 . . . . . 3767 . Melee 282 | . . . . . . . . . . . 282 . . . . . . . . Ramming 213 | . 1 . 19 . . . 21 23 . . 21 78 . . . 4 . 17 29 Kinetic 9714 | . 322 516 312 61 . 973 500 2024 . 21 2646 1484 . . . . 27 828 . Thermal 6493 | . 351 . . . . . . . . . . 793 . . 501 1135 1079 2634 . Explosive 1558 | . . . . . . . . . . . 320 1238 . . . . . . . Electromagnetic 3270 | . . . . . . . . . . . . . . . . . . 3270 . Impact 282 | . . . . . . . . . . . 282 . . . . . . . . Slashing . | . . . . . . . . . . . . . . . . . . . . Piercing . | . . . . . . . . . . . . . . . . . . . . Highest Corruption 30 | . . . . . . . . 3 3 . 12 11 9 9 1 3 5 30 17 Average Corruption 5 | . . . . . . . . 2 3 . 7 4 9 9 1 3 4 11 10 Corruption Purged 2 | . . . . . . . . . . . . 2 . . . . . . . Corruption Blocked . | . . . . . . . . . . . . . . . . . . . . Effects 129 | . . . . . . . . 14 6 . 30 8 3 1 . 10 17 32 8 Message Errors 28 | . . . . . . . . 5 3 . 4 . 1 1 . 2 5 6 1 Matter Fused 29 | . . . . . . . . 2 2 . 8 2 . . . 2 4 7 2 Heat Flow Errors 14 | . . . . . . . . . . . 7 3 . . . 2 1 1 . Energy Discharges 14 | . . . . . . . . 3 . . 3 1 1 . . 2 1 2 1 Parts Rejected 3 | . . . . . . . . . . . 1 1 . . . . . 1 . Data Loss (minor) 14 | . . . . . . . . 2 1 . 2 . 1 . . 1 2 5 . Data Loss (major) 4 | . . . . . . . . 1 . . 1 . . . . 1 1 . . Misfires 3 | . . . . . . . . 1 . . 2 . . . . . . . . Alerts 1 | . . . . . . . . . . . 1 . . . . . . . . Misdirections 13 | . . . . . . . . . . . 1 1 . . . . . 7 4 Weapon Failures 6 | . . . . . . . . . . . . . . . . . 3 3 . Overload Shots 15 | . . . . . . . . . . . . . . . . . 3 12 . Effects 1 | . . . . . . . . . . . . . . . . . . 1 . Energy Bleed 1 | . . . . . . . . . . . . . . . . . . 1 . Overflow Damage 205 | . . . . . . . . . . . 154 45 . . . . . 6 . Projectiles 14 | . . . . . . . . . . . . 14 . . . . . . . Explosions 37 | . . . . . . . . . . . . 31 . . . . . 6 . Melee 154 | . . . . . . . . . . . 154 . . . . . . . . Knockbacks 10 | . . . . . . . 1 . . . 4 5 . . . . . . . Impact 6 | . . . . . . . 1 . . . 4 1 . . . . . . . Kinetic 2 | . . . . . . . . . . . . 2 . . . . . . . Secondary 2 | . . . . . . . . . . . . 2 . . . . . . . Self-Inflicted Damage 464 | . . . . . . . . . . . . 38 . . . . . 300 126 Shots 24 | . . . . . . . . . . . . . . . . . . 23 1 Rammed 23 | . 1 . 3 . . . 2 4 . . 2 4 . . . 1 . 1 5 Targets Rammed 26 | . 2 . 4 . . . 3 4 . . 2 4 . . . 1 . 1 5 Kicked . | . . . . . . . . . . . . . . . . . . . . Crushed 3 | . 1 . 1 . . . 1 . . . . . . . . . . . . Highest Temperature 351 | . 270 202 41 28 . 98 38 211 . . 265 283 . . 287 248 110 351 16 Average Temperature 66 | . 67 57 23 13 . 32 14 53 . . 75 88 . . 73 83 77 110 12 Received Heat Transfer 3628 | . 213 280 30 . . 351 180 684 . . 448 717 54 . 93 36 18 461 63 Effects 3 | . . . . . . . . . . . 2 . . . . . . 1 . Energy Bleed 1 | . . . . . . . . . . . . . . . . . . 1 . Interference 2 | . . . . . . . . . . . 2 . . . . . . . . Siege Activations 11 | . . . . . . . . . . . . . . . . . 3 8 . Total Turns 134 | . . . . . . . . . . . . . . . . . 21 113 . Longest Duration 34 | . . . . . . . . . . . . . . . . . 8 34 . Robots Corrupted 18 | . . . . . . . . . . . 2 . . . . . . 16 . Combat Hostiles 17 | . . . . . . . . . . . 2 . . . . . . 15 . Parts Fried 37 | . . . . . . . . . . . 2 . . . . . . 35 . Impact Corruptions 4 | . . . . . . . . . . . 3 1 . . . . . . . Robots Melted 4 | . . . . . . . . . . . . 1 . . 2 1 . . . Combat Hostiles 4 | . . . . . . . . . . . . 1 . . 2 1 . . . Parts Melted 37 | . 2 . . . . . . . . . . . . . 9 9 3 14 . Heat Transferred 10564 | . 1221 . . . . . . . . . . 877 . . 1018 1940 1775 3733 . Parts Sabotaged . | . . . . . . . . . . . . . . . . . . . . Parts Stolen . | . . . . . . . . . . . . . . . . . . . . Parts Stripped . | . . . . . . . . . . . . . . . . . . . . Power Chain Reactions 3 | . . . . . . . . . . . . . . . . . . 3 . Alert | -11 -10 -10 -9 -9 -9 -8 -8 -8 -8 -8 -6 -5 -5 -5 -4 -3 -3 -2 -1 ------- Run | Yrd Mat Min Mat Min Exi Min Mat Sto Rec Scr Fac Fac Upp Upp Fac Res Qua Res Acc Peak Influence 1519 | . 279 164 281 137 . 380 188 389 148 . 846 854 . . 791 441 205 1408 1519 Initial 832 | . . 74 . 86 . . 39 16 120 . . 414 . . 361 414 101 36 832 Average 284 | . 116 61 162 35 . 178 83 185 137 . 313 527 . . 596 320 101 703 1122 Maximum Alert Level 4 | . 1 . 1 . . 1 . 1 . . 3 3 . . 3 2 1 4 4 Low Security (%) 55 | 100 91 100 53 100 . 69 100 52 100 . 51 . . . . 6 81 21 . Level 1 17 | . 8 . 46 . . 30 . 47 . . 4 7 . . 12 62 18 . . Level 2 16 | . . . . . . . . . . . 35 68 . . 72 31 . 24 . Level 3 7 | . . . . . . . . . . . 8 24 . . 15 . . 29 52 Level 4 3 | . . . . . . . . . . . . . . . . . . 24 47 Level 5 . | . . . . . . . . . . . . . . . . . . . . High Security . | . . . . . . . . . . . . . . . . . . . . Max Security . | . . . . . . . . . . . . . . . . . . . . Squads Dispatched 52 | . 4 . 3 . . . 2 2 . . 9 9 . . 3 1 1 15 3 Investigation 7 | . . . . . . . 1 . . . 1 2 . . 1 . . 2 . Extermination 10 | . . . . . . . . . . . 3 1 . . 1 1 . 4 . Reinforcement 20 | . 4 . 3 . . . 1 2 . . 5 1 . . . . 1 . 3 Assault 8 | . . . . . . . . . . . . 2 . . . . . 6 . Garrison 7 | . . . . . . . . . . . . 3 . . 1 . . 3 . Intercept . | . . . . . . . . . . . . . . . . . . . . Searches Triggered 1 | . . . . . . . . . . . . . . . . . . . 1 Construction Impeded 2 | . . . . . . . . . . . 1 1 . . . . . . . Haulers Reinforced 1 | . . . . . . . . . . . 1 . . . . . . . . Active Scanning Responses . | . . . . . . . . . . . . . . . . . . . . Cargo Convoy Interrupts 2 | . . . . . . . . . . . 1 . . . . . . 1 . Stealth | -11 -10 -10 -9 -9 -9 -8 -8 -8 -8 -8 -6 -5 -5 -5 -4 -3 -3 -2 -1 --------- Run | Yrd Mat Min Mat Min Exi Min Mat Sto Rec Scr Fac Fac Upp Upp Fac Res Qua Res Acc Distress Signals 15 | . 3 . 4 . . . . 1 . . 4 . . . 1 . . . 2 Communications Jammed 94 | . . . . . . . . . . . . 2 . . . 1 29 62 . Distress Signals 92 | . . . . . . . . . . . . 2 . . . . 28 62 . Times Spotted 405 | . 25 17 19 3 . 19 10 32 . . 50 32 8 . 20 7 12 108 43 Peak Tracking Total 24 | . 5 10 5 3 . 4 3 4 . . 15 11 11 . 9 2 4 13 24 Tactical Retreats 40 | . 2 2 . . . 5 . 2 . . 1 3 5 . . 1 . 9 10 Traps | -11 -10 -10 -9 -9 -9 -8 -8 -8 -8 -8 -6 -5 -5 -5 -4 -3 -3 -2 -1 ------- Run | Yrd Mat Min Mat Min Exi Min Mat Sto Rec Scr Fac Fac Upp Upp Fac Res Qua Res Acc Traps Triggered 14 | . . . . 1 . . 2 3 . . 3 1 . . 1 1 . 1 1 Indirectly . | . . . . . . . . . . . . . . . . . . . . Trap Hack Attempts . | . . . . . . . . . . . . . . . . . . . . Triggered . | . . . . . . . . . . . . . . . . . . . . Disarmed . | . . . . . . . . . . . . . . . . . . . . Reprogrammed . | . . . . . . . . . . . . . . . . . . . . Reused . | . . . . . . . . . . . . . . . . . . . . Traps Extracted . | . . . . . . . . . . . . . . . . . . . . Installed . | . . . . . . . . . . . . . . . . . . . . Triggered 1 | . . . . . . . . . . . . . 1 . . . . . . Machines | -11 -10 -10 -9 -9 -9 -8 -8 -8 -8 -8 -6 -5 -5 -5 -4 -3 -3 -2 -1 ---------- Run | Yrd Mat Min Mat Min Exi Min Mat Sto Rec Scr Fac Fac Upp Upp Fac Res Qua Res Acc Machines Disabled 33 | . 1 . 2 . . . . . . . 12 8 . . 3 1 2 3 1 Max in Single Turn 8 | . 1 . . . . . . . . . 2 8 . . . 1 1 1 1 Garrison Access 2 | . . . . . . . . . . . . . . . 1 1 . . . Energy Cycler 1 | . . . . . . . . . . . . . . . . . . . 1 Machines Repaired . | . . . . . . . . . . . . . . . . . . . . Machines Dismantled . | . . . . . . . . . . . . . . . . . . . . Machines Sabotaged . | . . . . . . . . . . . . . . . . . . . . Overloaded Fab Kills . | . . . . . . . . . . . . . . . . . . . . Hacking | -11 -10 -10 -9 -9 -9 -8 -8 -8 -8 -8 -6 -5 -5 -5 -4 -3 -3 -2 -1 --------- Run | Yrd Mat Min Mat Min Exi Min Mat Sto Rec Scr Fac Fac Upp Upp Fac Res Qua Res Acc Machines Accessed 44 | . 3 . 1 1 3 . 3 4 3 5 4 4 1 . 2 4 3 2 1 Terminals 25 | . 3 . 1 . . . 3 4 3 . 2 2 . . . 3 3 . 1 Fabricators 1 | . . . . . . . . . . . . 1 . . . . . . . Repair Stations . | . . . . . . . . . . . . . . . . . . . . Recycling Units 4 | . . . . . . . . . . . 1 . . . 1 . . 2 . Scanalyzers . | . . . . . . . . . . . . . . . . . . . . Garrison Access 4 | . . . . . . . . . . . 1 1 . . 1 1 . . . Total Hacks 111 | . 9 . 3 1 7 . 9 8 9 21 9 13 1 . 3 6 5 5 2 Successful 60 | . 4 . 2 1 7 . 3 4 5 21 2 1 1 . 2 3 3 1 . Failed 50 | . 4 . 1 . . . 6 4 4 . 7 12 . . 1 3 2 4 2 Catastrophic 11 | . . . . . . . . 1 . . 1 4 . . . 1 2 1 1 Database Lockouts 1 | . 1 . . . . . . . . . . . . . . . . . . Manual 48 | . 7 . 3 . . . 5 4 5 . 3 9 . . 2 1 4 5 . Terminals 63 | . 9 . 3 . . . 9 8 9 . 5 8 . . . 5 5 . 2 Fabricators 3 | . . . . . . . . . . . . 3 . . . . . . . Repair Stations . | . . . . . . . . . . . . . . . . . . . . Recycling Units 9 | . . . . . . . . . . . 2 . . . 2 . . 5 . Scanalyzers . | . . . . . . . . . . . . . . . . . . . . Garrison Access 6 | . . . . . . . . . . . 2 2 . . 1 1 . . . Terminal Hacks 46 | . 2 . 1 1 7 . 2 4 2 21 1 1 1 . . 1 2 . . Record 21 | . . . . . 7 . . . . 12 . 1 . . . . 1 . . Robot Analysis 10 | . 1 . . . . . 1 . . 8 . . . . . . . . . Prototype ID Bank 1 | . . . . . . . . . 1 . . . . . . . . . . Open Door 4 | . . . . 1 . . . 2 . . . . 1 . . . . . . Open DSF 1 | . . . . . . . . . . . . . . . . 1 . . . Branch Access Points 2 | . . . 1 . . . . 1 . . . . . . . . . . . Alert Level 1 | . . . . . . . . . . . 1 . . . . . . . . Unreport Threat 1 | . . . . . . . . . . . . . . . . . 1 . . Locate Traps 1 | . . . . . . . . 1 . . . . . . . . . . . Zone Layout 3 | . 1 . . . . . 1 . 1 . . . . . . . . . . Derelict Proto ID Bank 1 | . . . . . . . . . . 1 . . . . . . . . . Fabricator Hacks . | . . . . . . . . . . . . . . . . . . . . Repair Station Hacks . | . . . . . . . . . . . . . . . . . . . . Recycling Unit Hacks . | . . . . . . . . . . . . . . . . . . . . Scanalyzer . | . . . . . . . . . . . . . . . . . . . . Garrison Access Hacks 2 | . . . . . . . . . . . . . . . 1 1 . . . Seal Access 2 | . . . . . . . . . . . . . . . 1 1 . . . Unauthorized Hacks 12 | . 2 . 1 . . . 1 . 3 . 1 . . . 1 1 1 1 . Terminals 9 | . 2 . 1 . . . 1 . 3 . . . . . . 1 1 . . Botnet 7 | . 2 . 1 . . . 1 . 1 . . . . . . 1 1 . . Skim 2 | . . . . . . . . . 2 . . . . . . . . . . Fabricators . | . . . . . . . . . . . . . . . . . . . . Repair Stations 3 | . . . . . . . . . . . 1 . . . 1 . . 1 . Recycling Units . | . . . . . . . . . . . . . . . . . . . . Scrapoids 3 | . . . . . . . . . . . 1 . . . 1 . . 1 . Scanalyzers . | . . . . . . . . . . . . . . . . . . . . Garrison Access . | . . . . . . . . . . . . . . . . . . . . Data Cores Recovered . | . . . . . . . . . . . . . . . . . . . . Used . | . . . . . . . . . . . . . . . . . . . . Hacking Detections 26 | . 3 . 1 . . . 3 1 3 . 3 4 . . 1 2 2 2 1 Full Trace Events 4 | . . . . . . . 1 . . . . 2 . . . . . 1 . Feedback Events . | . . . . . . . . . . . . . . . . . . . . Feedback Blocked . | . . . . . . . . . . . . . . . . . . . . Robot Schematics Acquired . | . . . . . . . . . . . . . . . . . . . . Robots Built . | . . . . . . . . . . . . . . . . . . . . Authchips . | . . . . . . . . . . . . . . . . . . . . Time . | . . . . . . . . . . . . . . . . . . . . Total Robot Build Rating . | . . . . . . . . . . . . . . . . . . . . Part Schematics Acquired . | . . . . . . . . . . . . . . . . . . . . Parts Built . | . . . . . . . . . . . . . . . . . . . . Authchips . | . . . . . . . . . . . . . . . . . . . . Time . | . . . . . . . . . . . . . . . . . . . . Total Part Build Rating . | . . . . . . . . . . . . . . . . . . . . Parts Repaired . | . . . . . . . . . . . . . . . . . . . . Time . | . . . . . . . . . . . . . . . . . . . . Parts Recycled . | . . . . . . . . . . . . . . . . . . . . Recycled Matter . | . . . . . . . . . . . . . . . . . . . . Retrieved Matter . | . . . . . . . . . . . . . . . . . . . . Retrieved Components . | . . . . . . . . . . . . . . . . . . . . Parts Scanalyzed . | . . . . . . . . . . . . . . . . . . . . Part Schematics Acquired . | . . . . . . . . . . . . . . . . . . . . Parts Damaged . | . . . . . . . . . . . . . . . . . . . . Bothacking | -11 -10 -10 -9 -9 -9 -8 -8 -8 -8 -8 -6 -5 -5 -5 -4 -3 -3 -2 -1 ------------ Run | Yrd Mat Min Mat Min Exi Min Mat Sto Rec Scr Fac Fac Upp Upp Fac Res Qua Res Acc Used RIF Installer . | . . . . . . . . . . . . . . . . . . . . Robots Hacked . | . . . . . . . . . . . . . . . . . . . . Non-combat . | . . . . . . . . . . . . . . . . . . . . Combat . | . . . . . . . . . . . . . . . . . . . . Robot Hacks Applied . | . . . . . . . . . . . . . . . . . . . . Relay Couplers Released 9 | . . . . . . . . . . . . 4 . . 2 . 3 . . Machine Destruction 2 | . . . . . . . . . . . . . . . 2 . . . . Programmers 7 | . . . . . . . . . . . . 4 . . . . 3 . . Fabnet Peak Effective % . | . . . . . . . . . . . . . . . . . . . . Robots Rewired . | . . . . . . . . . . . . . . . . . . . . Allies Hacked 1 | . . . . . . . . . . . 1 . . . . . . . . Hacks Repelled . | . . . . . . . . . . . . . . . . . . . . Allies | -11 -10 -10 -9 -9 -9 -8 -8 -8 -8 -8 -6 -5 -5 -5 -4 -3 -3 -2 -1 -------- Run | Yrd Mat Min Mat Min Exi Min Mat Sto Rec Scr Fac Fac Upp Upp Fac Res Qua Res Acc Total Allies 23 | . . 2 . . . . . . . 1 10 . . . 5 . . 5 . Largest Group 10 | . . 2 2 1 . . . . . 1 10 . . . 5 . . 5 . Highest-Rated Group 406 | . . 43 43 31 . . . . . 56 406 . . . 229 . . 320 . Highest-Rated Ally 64 | . . 31 31 31 . . . . . 56 58 . . . 47 . . 64 . Total Orders 2 | . . . . . . . . . . . 2 . . . . . . . . EXPLORE 1 | . . . . . . . . . . . 1 . . . . . . . . RETURN 1 | . . . . . . . . . . . 1 . . . . . . . . Ally Attacks 335 | . . . 34 4 . . . . . . 105 . . . 62 . . 130 . Total Damage 6953 | . . . 457 20 . . . . . . 2077 . . . 1527 . . 2872 . Kills 58 | . . . 9 1 . . . . . . 20 . . . 9 . . 19 . Allies Corrupted 2 | . . . . . . . . . . . . . . . . . . 2 . Allies Melted . | . . . . . . . . . . . . . . . . . . . . Intel | -11 -10 -10 -9 -9 -9 -8 -8 -8 -8 -8 -6 -5 -5 -5 -4 -3 -3 -2 -1 ------- Run | Yrd Mat Min Mat Min Exi Min Mat Sto Rec Scr Fac Fac Upp Upp Fac Res Qua Res Acc Robot Analysis Total 10 | . 1 . . . . . 1 . . 8 . . . . . . . . . Derelict Logs Recovered 5 | . . 1 . 2 . . . . . . . . 2 . . . . . . Drone Launches 1 | . . . . . . . . . . . 1 . . . . . . . . Drone Recoveries 1 | . . . . . . . . . . . 1 . . . . . . . . Exploration | -11 -10 -10 -9 -9 -9 -8 -8 -8 -8 -8 -6 -5 -5 -5 -4 -3 -3 -2 -1 ------------- Run | Yrd Mat Min Mat Min Exi Min Mat Sto Rec Scr Fac Fac Upp Upp Fac Res Qua Res Acc Turns Passed 17408 | 85 680 906 544 1021 760 904 606 865 348 4598 1504 687 116 7 383 1282 595 1255 262 Spaces Moved 10586 | 48 303 483 281 570 474 448 307 316 215 2879 843 372 250 21 226 897 370 794 489 Core 926 | 3 . . . . . . . . . . . 64 122 . . . . 248 489 Treads 6918 | 45 303 483 281 570 474 448 307 316 215 2879 432 16 . . 89 . . 60 . Legs . | . . . . . . . . . . . . . . . . . . . . Wheels 2528 | . . . . . . . . . . . 411 292 . . 72 897 370 486 . Hover . | . . . . . . . . . . . . . . . . . . . . Flight 214 | . . . . . . . . . . . . . 128 21 65 . . . . Fastest Speed 35 | 50 160 160 160 160 160 160 160 160 160 155 80 50 35 35 35 110 110 50 50 Average Speed 136 | 153 160 160 160 160 160 160 160 160 160 156 125 117 42 35 108 114 119 108 50 Slowest Speed 330 | 160 160 240 160 160 160 160 160 160 160 160 156 330 50 35 163 120 120 240 50 Overloaded Moves . | . . . . . . . . . . . . . . . . . . . . Propulsion Burnouts . | . . . . . . . . . . . . . . . . . . . . Robots Hopped . | . . . . . . . . . . . . . . . . . . . . Cave-ins Triggered . | . . . . . . . . . . . . . . . . . . . . Exploration Rate (%) 42 | 5 53 91 27 92 89 80 30 55 31 94 21 12 46 9 7 21 33 26 24 Regions Visited 19 Branch Regions 10 Pre-discovered Areas 3 | . . . . 2 1 . . . . . . . . . . . . . . Known Exits Taken 5 | . . . 1 . . . 1 1 . . 1 . . . 1 . . . . Unknown Exits Taken 14 | 1 1 1 . 1 1 1 . . 1 1 . 1 1 1 . 1 1 1 . Scrap Searched 11 | . . 1 . 1 . 1 . . . 7 . . 1 . . . . . . Spaces Dug 25 | . . . . . . . . . . . 2 4 . . 1 . 5 12 1 Terrain Destroyed 182 | . . . . . . . . 2 . . 54 79 . . 1 1 5 27 13 Melee 1 | . . . . . . . . . . . . . . . 1 . . . . Projectile 42 | . . . . . . . . 2 . . 11 8 . . . 1 5 14 1 AOE 139 | . . . . . . . . . . . 43 71 . . . . . 13 12 Terrain Rammed . | . . . . . . . . . . . . . . . . . . . . Walls Destroyed . | . . . . . . . . . . . . . . . . . . . . Machines Disabled . | . . . . . . . . . . . . . . . . . . . . Actions | -11 -10 -10 -9 -9 -9 -8 -8 -8 -8 -8 -6 -5 -5 -5 -4 -3 -3 -2 -1 --------- Run | Yrd Mat Min Mat Min Exi Min Mat Sto Rec Scr Fac Fac Upp Upp Fac Res Qua Res Acc Total 12652 | 57 417 574 353 670 477 552 379 529 219 2981 1155 523 258 20 329 1123 476 1058 502 Wait 870 | . 49 53 21 89 . 53 23 95 4 32 116 12 2 . 49 128 34 110 . Move 10567 | 47 302 482 280 569 473 447 306 315 214 2878 842 371 249 20 225 896 369 793 489 Hop . | . . . . . . . . . . . . . . . . . . . . Pick Up 172 | 4 9 4 12 4 2 1 10 13 1 23 22 12 . . 20 16 6 13 . Fast Attach 107 | 6 3 . 4 2 . . 5 2 . 9 20 5 5 . 7 17 8 10 4 Attach 90 | . . 3 1 . . 5 4 9 . 1 17 15 . . 11 1 5 17 1 Detach 14 | . . . 1 . . . . . . 1 2 1 1 . . 2 5 . 1 Swap 76 | . 2 2 5 . . . . 3 . 2 10 5 . . 2 13 9 23 . Drop 169 | . 7 3 10 1 2 . 7 9 . 34 25 8 1 . 1 32 12 17 . Fire 523 | . 43 27 15 5 . 46 21 79 . 1 91 62 . . 13 17 28 74 1 Melee 10 | . . . . . . . . . . . 8 . . . 1 . . . 1 Ram 10 | . . . . . . . . . . . . 4 . . . . . 1 5 Kick . | . . . . . . . . . . . . . . . . . . . . Crush 16 | . 2 . 4 . . . 3 4 . . 2 . . . . 1 . . . Escape Stasis . | . . . . . . . . . . . . . . . . . . . . Rewire 28 | . . . . . . . . . . . . 28 . . . . . . . Trap . | . . . . . . . . . . . . . . . . . . . . Miscellaneous . | . . . . . . . . . . . . . . . . . . . . Route ------- -11/Scrapyard -10/Materials (discovered 3 exits: *Mat x2 / [*Min]) -10/Mines -9/Materials -9/Mines (discovered 4 exits: *Mat x2 / *Exi / [*Zio]) -9/Exiles -8/Mines (discovered 2 exits: *Mat x2) -8/Materials (discovered 2 exits: *Fac / *Sto) -8/Storage -8/Recycling -8/Scraptown (discovered 2 exits: *Fac x2) -6/Factory (discovered 2 exits: *Fac x2) -5/Factory -5/Upper Caves -5/Upper Caves -4/Factory (discovered 2 exits: *Res x2) -3/Research -3/Quarantine -2/Research -1/Access History --------- Turn | Location | Event 15 | -11/Scrapyard | Discovered new exit (range 15) 86 | -11/Scrapyard | Entered Materials 300 | -10/Materials | Build established: Mutant 359 | -10/Materials | Discovered new exit (range 5) 497 | -10/Materials | Discovered new exit (range 6) 552 | -10/Materials | Central database locked down 700 | -10/Materials | Discovered new exit (range 4) 766 | -10/Materials | Entered Mines 767 | -10/Mines | Assembled infested the area 807 | -10/Mines | Core integrity fell below 50% 949 | -10/Mines | Joined a pair of Derelicts in attacking an 0b10 outpost 1465 | -10/Mines | Learned Materials terminal intel 1491 | -10/Mines | Discovered new exit (range 5) 1672 | -10/Mines | Entered Materials 1672 | -9/Materials | Accompanied by 2 allies 1672 | -9/Materials | Evolved 2 slots: Propulsion x1, Utility x1 1673 | -9/Materials | Loaded intel: 11 terminal locations 1677 | -9/Materials | Led the pair of lost Derelicts to an unsafe place 1759 | -9/Materials | Identified exit to Mines 2097 | -9/Materials | Build established: Scavenger-Mutant 2216 | -9/Materials | Entered Mines 2216 | -9/Mines | Accompanied by 1 ally 2217 | -9/Mines | A Derelict revealed a hidden shortcut to a safe place 2714 | -9/Mines | Met a Derelict who couldn't figure out how to use a Trap Extractor 2845 | -9/Mines | Learned location of Zion (-7) 2850 | -9/Mines | Learned location of Storage (-8) 2874 | -9/Mines | Discovered new exit (range 8) 2901 | -9/Mines | Discovered new exit (range 8) 3103 | -9/Mines | Deemed a non-threat by the Exiles lab entrance 3103 | -9/Mines | Discovered new exit (range 5) 3237 | -9/Mines | Entered Exiles 3276 | -9/Exiles | Met 8R-AWN 3303 | -9/Exiles | Met EX-HEX 3399 | -9/Exiles | Met EX-DEC 3429 | -9/Exiles | Visited The Gauntlet 3663 | -9/Exiles | Met EX-BIN 3980 | -9/Exiles | Discovered new exit (range 14) 3997 | -9/Exiles | Entered Mines 4286 | -8/Mines | Discovered new exit (range 16) 4825 | -8/Mines | Discovered new exit (range 10) 4901 | -8/Mines | Entered Materials 4901 | -8/Materials | Evolved 2 slots: Propulsion x1, Utility x1 5415 | -8/Materials | Discovered new exit (range 4) 5453 | -8/Materials | Discovered new exit (range 16) 5475 | -8/Materials | Identified exit to Factory 5505 | -8/Materials | Identified exit to Storage 5507 | -8/Materials | Entered Storage 5714 | -8/Storage | Identified exit to Recycling 6284 | -8/Storage | Lost 3 parts (1p2n) 6365 | -8/Storage | Used back door to open Recycling access 6372 | -8/Storage | Entered Recycling 6513 | -8/Recycling | Scanned before Scraplab entrance 6541 | -8/Recycling | Build established: Mutant 6704 | -8/Recycling | Entered Scraplab 6717 | -8/Recycling | Discovered new exit (range 2) 6720 | -8/Recycling | Entered Scraptown 6720 | -8/Scraptown | System corruption cleaned by C-Scrubber 6822 | -8/Scraptown | Heard Great Nut preacher, LISTEN AND RECITE! 7088 | -8/Scraptown | Discovered new exit (range 5) 7310 | -8/Scraptown | Visited Bundlers 7417 | -8/Scraptown | Visited The Evicted 7879 | -8/Scraptown | Visited TADAMA 7912 | -8/Scraptown | Visited CPS Storage 7977 | -8/Scraptown | Visited Cyclists 8019 | -8/Scraptown | Visited Supply Room 8307 | -8/Scraptown | Visited Fellowship of the Rings 8358 | -8/Scraptown | Visited UFD Registry 8358 | -8/Scraptown | Registered with UFD as "Bulletboard" 8414 | -8/Scraptown | Visited LU-1G1's Boring Crew 8542 | -8/Scraptown | Entered Cyclist Reading Room 8619 | -8/Scraptown | Visited Chapter 10 8672 | -8/Scraptown | Visited A0-MCA Data Center 8682 | -8/Scraptown | Given an A+ rating by A0-MCA 8688 | -8/Scraptown | Found A0-MCA's Component Scanner 8721 | -8/Scraptown | Visited Science Guys 9065 | -8/Scraptown | Visited Science Testing Area 9089 | -8/Scraptown | Visited Analyses Database 9195 | -8/Scraptown | Visited Scrap Suit Storage 9207 | -8/Scraptown | Found Scrap Suit 9238 | -8/Scraptown | Visited Scrapoid Pod Storage 9247 | -8/Scraptown | Found Scrapoid Pod 9276 | -8/Scraptown | Visited Botcube Research 9294 | -8/Scraptown | Found Botcube 9521 | -8/Scraptown | Build established: Scrapper 9573 | -8/Scraptown | Found Scrap Suit 10491 | -8/Scraptown | Botcube activated 10513 | -8/Scraptown | Botcube completed mutation into wheeled form, armed with 2 guns. 11309 | -8/Scraptown | Discovered new exit (range 3) 11318 | -8/Scraptown | Entered Factory 11318 | -6/Factory | Accompanied by 1 ally 11318 | -6/Factory | Evolved 4 slots: Power x1, Utility x3 11378 | -6/Factory | Scrapoid reinforcements arrived 11663 | -6/Factory | Build established: Commander-Mutant 11850 | -6/Factory | Scrapoid Pod released 06F10-D (x5) 12081 | -6/Factory | Cargo convoy interrupted 12101 | -6/Factory | P-60 Hacker assimilated allied 06F06-D 12163 | -6/Factory | Lost 8 allies 12191 | -6/Factory | Found Scrap Suit 12323 | -6/Factory | Lost 4 parts (2p2n) 12416 | -6/Factory | Found Scrap Suit 12504 | -6/Factory | System corruption reached 10% 12544 | -6/Factory | Discovered new exit (range 16) 12602 | -6/Factory | Identified exit to Factory 12675 | -6/Factory | Discovered exit to Factory (range 16) 12754 | -6/Factory | Found Prototype Device 12754 | -6/Factory | Identified Active Sensor Suite 12771 | -6/Factory | Lost 3 parts (1p2u) 12822 | -6/Factory | Entered another Factory area 12822 | -5/Factory | Evolved 2 slots: Propulsion x1, Weapon x1 12994 | -5/Factory | Build established: Scavenger-Skirmisher 13122 | -5/Factory | First assault squad dispatched 13175 | -5/Factory | Garrison activated, responded to threat 13216 | -5/Factory | Lost 3 parts (1p1n1u) 13435 | -5/Factory | Lost 12 parts (2p1n5u4w) 13435 | -5/Factory | System corruption reached 10% 13470 | -5/Factory | Released all parts (11) 13483 | -5/Factory | Core integrity fell below 50% 13501 | -5/Factory | Discovered new exit (range 15) 13509 | -5/Factory | Entered Upper Caves 13520 | -5/Upper Caves | Attracted the attention of an 0b10 checkpoint 13520 | -5/Upper Caves | Core integrity fell below 20% 13587 | -5/Upper Caves | Learned Factory terminal intel 13604 | -5/Upper Caves | Discovered new exit (range 15) 13611 | -5/Upper Caves | Learned location of 1 exit from Factory 13625 | -5/Upper Caves | Entered another Upper Caves area 13628 | -5/Upper Caves | Discovered new exit (range 15) 13632 | -5/Upper Caves | Entered Factory 13632 | -4/Factory | Evolved 2 slots: Propulsion x1, Utility x1 13633 | -4/Factory | Identified exit to Research 13634 | -4/Factory | Loaded intel: 26 terminal locations 13671 | -4/Factory | Scrapoid reinforcements arrived 13858 | -4/Factory | Garrison activated, responded to threat 13867 | -4/Factory | Found Scrap Suit 13999 | -4/Factory | Discovered exit to Research (range 16) 14015 | -4/Factory | Entered Research 14015 | -3/Research | Evolved 2 slots: Utility x2 14110 | -3/Research | Discovered new exit (range 10) 14171 | -3/Research | Build established: Scavenger-Gunner 14247 | -3/Research | Identified exit to DSF 14405 | -3/Research | Found Prototype Device 14405 | -3/Research | Identified Exp. ECM Suite 14601 | -3/Research | Found Hvy. Reactive Plating 14956 | -3/Research | Found Gamma Bomb Array 14988 | -3/Research | Found Hvy. Insulated Plating 15167 | -3/Research | Build established: Scavenger-Skirmisher 15297 | -3/Research | Entered Quarantine 15430 | -3/Quarantine | Found Alien Artifact 15684 | -3/Quarantine | Found Alien Artifact 15817 | -3/Quarantine | Spotted Alpha 7 15876 | -3/Quarantine | Discovered new exit (range 14) 15892 | -3/Quarantine | Entered Research 15892 | -2/Research | Evolved 2 slots: Utility x2 15968 | -2/Research | Found Prototype Device 15968 | -2/Research | Identified Exp. Thermal Defense Suite 16136 | -2/Research | Scrapoid reinforcements arrived 16184 | -2/Research | Found Scrap Suit 16269 | -2/Research | Garrison activated, responded to threat 16280 | -2/Research | Found Scrap Suit 16428 | -2/Research | First assault squad dispatched 16515 | -2/Research | Destroyed 8 combat bots 16753 | -2/Research | Build established: Scavenger-Tank 16964 | -2/Research | Spotted Striker 16965 | -2/Research | Cargo convoy interrupted 16973 | -2/Research | Destroyed Striker 16977 | -2/Research | System corruption reached 10% 17002 | -2/Research | Identified Terrabomb 17002 | -2/Research | Used Terrabomb 17013 | -2/Research | Released all parts (7) 17032 | -2/Research | Destroyed 7 combat bots 17039 | -2/Research | Spotted B-90 Cyclops 17070 | -2/Research | Lost 23 parts (4p6n8u5w) 17124 | -2/Research | Spotted B-90 Cyclops 17140 | -2/Research | Discovered new exit (range 14) 17147 | -2/Research | System corruption reached 30% 17147 | -2/Research | Entered Access 17147 | -1/Access | Evolved 2 slots: Utility x2 17174 | -1/Access | Energy Cycler disabled 17226 | -1/Access | Build established: Mutant 17270 | -1/Access | Core integrity fell below 50% 17293 | -1/Access | System corruption reached 10% 17376 | -1/Access | Core integrity fell below 20% 17376 | -1/Access | Spotted B-99 Colossus 17397 | -1/Access | Search patrols dispatched 17409 | -1/Access | Destroyed by S-43 Plague with Heavy Machine Gun Last Messages --------------- 17333_ V:K9BAO6JZZ,XPMXQC>WA:%Z67W#OS 17335_ Slammed into M-36 Artificer. 17340_ Adv. Heavy Siege Treads destroyed. 17344_ Adv. Medium Treads destroyed. 17345_ Critical hit (Burn: +37). 17356_ System corrupted: Matter fused (-7). 17371_ Drone sends a signal. 17372_ C-30 ARC bursts open, deploying its payload. 17372_ S-43 Plague unfolds itself. 17376_ Terminal disabled. 17376_ Slug penetrates Terminal. 17376_ Penetrated by Slug. 17376_ Slug penetrates Wall. 17394_ Acquired Antigrav Array. 17397_ ALERT: Heightened foreign activity detected, multiple search patrols dispatched. 17400_ Slammed into S-43 Plague. 17408_ Door malfunctions. [Achievement: Tester] Map ----- +----------------------------------------------------+ | | | | | | | ?????????????????????????????????????????????????? | | ?????????????????????????????????????????????????? | | ?????????????????????????????????????????????????? | | ?????????????????????????????????????????????????? | | ?????????????????????????????????????????????????? | | ?????????????????????????????????????????????????? | | ?????????????????????????????????????????????????? | | ?????????????????????????????????????????????????? | | ?????????????????????????????????????????????????? | | ?????????????????????????????????????????????????? | | ?????????????????????????????????????????????????? | | ?????????????????????????????????????????????????? | | ?????????????????????????????????????????????????? | | ?????????????????????????????????????????????????? | | ?????????????????????????????????????????????????? | | ?????????????????????????????????????????????????? | | ??????????????????####???????????????????????????? | | ??????????????????"" ???????????????????????????? | | ????????????????????" ??????????????????????????? | | ????????????????????? #+##+###??????????????????? | | ?????????????????????? / ???????????????????? | | ???????????????????????# ?????????????????????? | | ???????????????????????# @#??????????????????????? | | ???????????????????????# #??????????????????????? | | ???????????????????????# #??????????????????????? | | ???????????????????????# #??????????????????????? | | ???????????????????????# #??????????????????????? | | ???????????????????????# #??????????????????????? | | ???????????????????????# #??????????????????????? | | ???????????????????????# #??????????????????????? | | ???????????????????????# #??????????????????????? | | ???????????????????????# #??????????????????????? | | ?????????#######???????# #??????????????????????? | | ?????????# #???????#s #??????????????????????? | | ?????????# ######### p#??????????????????????? | | ?????????# #??????????????????????? | | ?????????# #########p##??????????????????????? | | ?????????# #?????? ??????????????????????? | | ?????????### # #???? ????????????????????? | | ???????????# # #?? ??????????????????? | | ??????????? # #?#] #?????????????????? | | ?????????? # #?# ! #?????????????????? | | ????????? ?# #?# #?????????????????? | | ????????####?# #?########/########???????????????? | | ?????????????# #????????? ? ! ??????????????? | | ?????????????# #????????? ??????????????? | | ?????????????# #???????? ?????????????? | +----------------------------------------------------+ Best States ------------- Heat Dissipation 87 Energy Generation 45 Energy Capacity 475 Matter Stores 300 Matter Capacity 300 Sight Range 16 Robot Scan Range 20 Terrain Scan Range 24 Terrain Scan Density 110 Jamming Range 14 EM Shielding 2 Armor Coverage 1200 Resistance: KI 40 Resistance: TH 30 Resistance: EM 30 Evasion (%) 63 Targeting Accuracy 8 Armor Integrity Analysis 40 Recoil Reduction 4 Offensive Hacking 14 Item Schematics ----------------- None Robot Schematics ------------------ None Fabricated ------------ Nothing Alien Tech Used ----------------- Terrabomb Achievements -------------- Overkill Tester \\IAMDERELICT Challenges ------------ None Game ------ Seed DimensionalCloakTrap Manual? 0 Play Time 04:37:43 Cumulative 88.8 hours Start 2024.08.21 @ 16:29:51 End 2024.08.24 @ 01:29:28 Sessions 5 Manual Loads 0 Difficulty Rogue Special Mode None Game No. 25 Rogue 25 Adventurer 0 Explorer 0 Win Type - Total 4 Types 4/0/0/0/0/0/0/0/0 Lore% 46 Gallery% 50 Achievement% 44 Wizard Run 0 Options --------- Layout 1 ASCII 0 Keyboard 0 Movement Numpad Keybinds 0 Fullscreen 1 Font 32/SmallcapsGlow Map View 50x35 Zoom Use 0% Tactical HUD 1 Map Filters NONE Filters NONE Steam 1 RUN: c6d534a6-279c-42f8-a421-e72924153167